[Event "FIDE WCCC Open-08 2024"]
[Site "Montesilvano"]
[Date "2024.11.18"]
[Round "2.40"]
[White "Katsarski, Yan"]
[Black "Batbileg, Boldbaatar"]
[Result "0-1"]
[ECO "C92"]
[WhiteElo "1418"]
[BlackElo "1623"]
[PlyCount "82"]
[EventDate "2024.11.18"]
[EventType "swiss"]
[EventCountry "ITA"]
[TimeControl "5400+30"]

1. e4 {[%emt 0:02:00]} e5 {[%emt 0:00:20]} 2. Nf3 {[%emt 0:02:00]} Nc6 {[%emt 0:00:50]} 3. Bc4 {[%emt 0:01:36]} Nf6 {[%emt 0:01:06]} 4. d3 {[%emt 0:02:30]} Be7 {[%emt 0:00:37]} 5. O-O {[%emt 0:02:01]} O-O {[%emt 0:00:45]} 6. c3 {[%emt 0:01:35]} d6 {[%emt 0:00:21]} 7. h3 {[%emt 0:01:43]} Na5 {[%emt 0:00:26]} 8. Bb5 {[%emt 0:01:42]} a6 {[%emt 0:00:35]} 9. Ba4 {[%emt 0:01:18]} b5 {[%emt 0:00:20]} 10. Bc2 {[%emt 0:01:00]} c5 {[%emt 0:00:05]} 11. Re1 {[%emt 0:00:54]} Bb7 {[%emt 0:01:10]} 12. Nbd2 {[%emt 0:01:15]} Nc6 {[%emt 0:04:04]} 13. Nf1 {[%emt 0:01:18]} b4 {[%emt 0:01:06]} 14. Ng3 {[%emt 0:01:23]} Qc7 {[%emt 0:03:24]} 15. Bg5 {[%emt 0:23:24]} Ne8 {[%emt 0:15:48]} 16. Bxe7 {[%emt 0:02:04]} Nxe7 {[%emt 0:00:17]} 17. Nh4 {[%emt 0:01:36]} g6 {[%emt 0:02:29]} 18. Qg4 {[%emt 0:00:59]} Ng7 {[%emt 0:00:17]} 19. Bb3 {[%emt 0:03:13]} d5 {[%emt 0:06:29]} 20. exd5 {[%emt 0:00:47]} Nxd5 {[%emt 0:00:16]} 21. Nf3 {[%emt 0:04:15]} Rfe8 {[%emt 0:03:12]} 22. Ng5 {[%emt 0:02:01]} h6 {[%emt 0:02:01]} 23. N5e4 {[%emt 0:00:20]} Kh7 {[%emt 0:00:58]} 24. Bxd5 {[%emt 0:01:12]} Bxd5 {[%emt 0:01:14]} 25. Nf6+ {[%emt 0:00:18]} Kh8 {[%emt 0:00:10]} 26. Nxd5 {[%emt 0:01:07]} Qc6 {[%emt 0:02:00]} 27. c4 {[%emt 0:00:14]} Rad8 {[%emt 0:00:17]} 28. Ne4 {[%emt 0:02:32]} f5 {[%emt 0:00:39]} 29. Qh4 {[%emt 0:01:57]} fxe4 {[%emt 0:00:24]} 30. Nf6 {[%emt 0:00:26]} Nf5 {[%emt 0:00:26]} 31. Qxe4 {[%emt 0:00:59]} Qxf6 {[%emt 0:00:07]} 32. Qf3 {[%emt 0:00:47]} Qg5 {[%emt 0:01:11]} 33. Qc6 {[%emt 0:02:30]} Nh4 {[%emt 0:01:05]} 34. Rad1 {[%emt 0:00:54]} e4 {[%emt 0:00:33]} 35. g4 {[%emt 0:00:45]} Nf3+ {[%emt 0:00:20]} 36. Kg2 {[%emt 0:00:21]} Nxe1+ {[%emt 0:00:21]} 37. Rxe1 {[%emt 0:00:36]} e3 {[%emt 0:01:30]} 38. b3 {[%emt 0:00:22]} e2 {[%emt 0:00:29]} 39. Qxc5 {[%emt 0:00:46]} Qxc5 {[%emt 0:00:09]} 40. Kf3 {[%emt 0:00:22]} Rxd3+ {[%emt 0:00:13]} 41. Kf4 {[%emt 0:00:31]} Qe5# {[%emt 0:00:21]} 0-1

[Event "FIDE WCCC Open-08 2024"]
[Site "Montesilvano"]
[Date "2024.11.18"]
[Round "2.41"]
[White "Glod, Peter"]
[Black "Chanishvili, Noa"]
[Result "1/2-1/2"]
[ECO "C50"]
[WhiteElo "1409"]
[BlackElo "1553"]
[PlyCount "64"]
[EventDate "2024.11.18"]
[EventType "swiss"]
[EventCountry "ITA"]
[TimeControl "5400+30"]

1. e4 {[%emt 1:31:00]} e5 {[%emt 0:00:08]} 2. Nf3 {[%emt 0:00:00]} Nc6 {[%emt 0:00:22]} 3. Bc4 {[%emt 0:00:00]} d6 {[%emt 0:00:36]} 4. d4 {[%emt 0:00:00]} exd4 {[%emt 0:01:21]} 5. Nxd4 {[%emt 0:00:00]} Ne5 {[%emt 0:04:47]} 6. Bb3 {[%emt 0:00:00]} Nf6 {[%emt 0:00:51]} 7. Nc3 {[%emt 0:00:00]} Be7 {[%emt 0:00:31]} 8. Bf4 {[%emt 0:00:00]} O-O {[%emt 0:01:14]} 9. O-O {[%emt 0:00:00]} Bd7 {[%emt 0:02:25]} 10. Bxe5 {[%emt 0:00:00]} dxe5 {[%emt 0:00:28]} 11. Nf3 {[%emt 0:00:00]} Bd6 {[%emt 0:01:00]} 12. Re1 {[%emt 0:00:00]} Bg4 {[%emt 0:00:38]} 13. h3 {[%emt 0:00:00]} Bxf3 {[%emt 0:00:15]} 14. Qxf3 {[%emt 0:00:00]} Qe7 {[%emt 0:00:32]} 15. a3 {[%emt 0:00:00]} Rad8 {[%emt 0:00:32]} 16. Rad1 {[%emt 0:00:00]} a6 {[%emt 0:01:10]} 17. Nd5 {[%emt 0:00:00]} Nxd5 {[%emt 0:02:23]} 18. Bxd5 {[%emt 0:00:00]} c6 {[%emt 0:00:36]} 19. Bb3 {[%emt 0:00:00]} Bc7 {[%emt 0:01:06]} 20. Rxd8 {[%emt 0:00:00]} Rxd8 {[%emt 0:00:13]} 21. Rd1 {[%emt 0:00:00]} Rxd1+ {[%emt 0:00:30]} 22. Qxd1 {[%emt 0:00:00]} Qd6 {[%emt 0:01:26]} 23. Qxd6 {[%emt 0:00:00]} Bxd6 {[%emt 0:00:11]} 24. Kf1 {[%emt 0:00:00]} Kf8 {[%emt 0:00:17]} 25. Ke2 {[%emt 0:00:00]} Bc5 {[%emt 0:00:41]} 26. Kf3 {[%emt 0:00:00]} Ke7 {[%emt 0:00:23]} 27. Kg3 {[%emt 0:00:00]} Kf6 {[%emt 0:01:08]} 28. f3 {[%emt 0:00:00]} b6 {[%emt 0:01:27]} 29. a4 {[%emt 0:00:00]} a5 {[%emt 0:02:57]} 30. f4 {[%emt 0:00:00]} exf4+ {[%emt 0:01:58]} 31. Kxf4 {[%emt 0:00:00]} Bd4 {[%emt 0:01:22]} 32. c3 {[%emt 0:00:00]} Be5+ {[%emt 0:00:18]} 1/2-1/2

[Event "FIDE WCCC Open-08 2024"]
[Site "Montesilvano"]
[Date "2024.11.18"]
[Round "2.43"]
[White "Wang, Yihan(Ah)"]
[Black "Senthilkumar, Tharveen"]
[Result "1-0"]
[ECO "B22"]
[WhiteElo "1630"]
[BlackElo "1411"]
[PlyCount "145"]
[EventDate "2024.11.18"]
[EventType "swiss"]
[EventCountry "ITA"]
[TimeControl "5400+30"]

1. e4 {[%emt 0:00:05]} c5 {[%emt 0:00:07]} 2. c3 {[%emt 0:00:08]} Nf6 {[%emt 0:00:08]} 3. e5 {[%emt 0:00:10]} Nd5 {[%emt 0:00:07]} 4. d4 {[%emt 0:00:09]} cxd4 {[%emt 0:00:17]} 5. cxd4 {[%emt 0:00:07]} Nc6 {[%emt 0:00:13]} 6. Nf3 {[%emt 0:00:18]} e6 {[%emt 0:01:22]} 7. Bc4 {[%emt 0:01:38]} Nb6 {[%emt 0:00:55]} 8. Bb3 {[%emt 0:04:33]} Be7 {[%emt 0:01:01]} 9. Nc3 {[%emt 0:02:26]} O-O {[%emt 0:01:35]} 10. O-O {[%emt 0:04:46]} d6 {[%emt 0:01:06]} 11. Be3 {[%emt 0:07:53]} d5 {[%emt 0:00:49]} 12. Re1 {[%emt 0:12:22]} f6 {[%emt 0:02:34]} 13. exf6 {[%emt 0:10:08]} Bxf6 {[%emt 0:00:44]} 14. Bf4 {[%emt 0:12:02]} a5 {[%emt 0:02:27]} 15. Nb5 {[%emt 0:07:18]} Nc4 {[%emt 0:02:02]} 16. Bxc4 {[%emt 0:13:26]} dxc4 {[%emt 0:00:48]} 17. Nc7 {[%emt 0:05:24]} Ra7 {[%emt 0:00:35]} 18. Nxe6 {[%emt 0:03:03]} Bxe6 {[%emt 0:00:21]} 19. Rxe6 {[%emt 0:00:08]} Nxd4 {[%emt 0:00:43]} 20. Rd6 {[%emt 0:11:01]} Nxf3+ {[%emt 0:00:19]} 21. Qxf3 {[%emt 0:00:18]} Qc8 {[%emt 0:00:24]} 22. Qd5+ {[%emt 0:01:21]} Kh8 {[%emt 0:00:23]} 23. Be5 {[%emt 0:01:11]} Bxe5 {[%emt 0:01:19]} 24. Qxe5 {[%emt 0:00:23]} Ra8 {[%emt 0:00:39]} 25. Rad1 {[%emt 0:01:04]} Qe8 {[%emt 0:01:24]} 26. Qxe8 {[%emt 0:00:42]} Rfxe8 {[%emt 0:00:25]} 27. Kf1 {[%emt 0:00:10]} b5 {[%emt 0:00:29]} 28. R1d5 {[%emt 0:01:06]} Reb8 {[%emt 0:01:03]} 29. Rc6 {[%emt 0:00:13]} h6 {[%emt 0:01:05]} 30. Rcc5 {[%emt 0:00:12]} b4 {[%emt 0:00:57]} 31. Rxc4 {[%emt 0:00:20]} Ra7 {[%emt 0:00:32]} 32. Rcc5 {[%emt 0:00:44]} Rba8 {[%emt 0:00:25]} 33. Ke2 {[%emt 0:00:29]} Kh7 {[%emt 0:01:25]} 34. Rb5 {[%emt 0:00:26]} Kg6 {[%emt 0:01:02]} 35. Kd3 {[%emt 0:00:17]} Kf7 {[%emt 0:01:10]} 36. Rbc5 {[%emt 0:00:28]} Ke6 {[%emt 0:00:43]} 37. Kc4 {[%emt 0:00:25]} Rf8 {[%emt 0:01:58]} 38. f3 {[%emt 0:00:50]} Rfa8 {[%emt 0:00:13]} 39. Kb5 {[%emt 0:00:41]} Rd7 {[%emt 0:04:41]} 40. Rxd7 {[%emt 0:00:32]} Kxd7 {[%emt 0:00:21]} 41. Kc4 {[%emt 0:00:44]} Kd6 {[%emt 0:01:07]} 42. Rd5+ {[%emt 0:00:22]} Kc6 {[%emt 0:00:27]} 43. Rc5+ {[%emt 0:00:24]} Kb6 {[%emt 0:00:41]} 44. Re5 {[%emt 0:00:32]} Rc8+ {[%emt 0:01:28]} 45. Kd3 {[%emt 0:00:17]} Rc6 {[%emt 0:00:49]} 46. Re7 {[%emt 0:00:19]} g6 {[%emt 0:00:21]} 47. f4 {[%emt 0:00:43]} Kb5 {[%emt 0:03:50]} 48. Re5+ {[%emt 0:00:23]} Kb6 {[%emt 0:00:58]} 49. g4 {[%emt 0:00:41]} a4 {[%emt 0:01:06]} 50. f5 {[%emt 0:00:33]} gxf5 {[%emt 0:00:28]} 51. gxf5 {[%emt 0:00:16]} a3 {[%emt 0:00:29]} 52. bxa3 {[%emt 0:00:29]} bxa3 {[%emt 0:01:06]} 53. Re6 {[%emt 0:00:52]} Rxe6 {[%emt 0:00:25]} 54. fxe6 {[%emt 0:00:05]} Kc6 {[%emt 0:00:19]} 55. Ke4 {[%emt 0:00:10]} Kd6 {[%emt 0:00:38]} 56. Kf5 {[%emt 0:00:03]} Ke7 {[%emt 0:00:30]} 57. Ke5 {[%emt 0:00:06]} h5 {[%emt 0:00:47]} 58. h4 {[%emt 0:00:23]} Ke8 {[%emt 0:00:13]} 59. Kf6 {[%emt 0:00:04]} Kf8 {[%emt 0:00:48]} 60. Kg6 {[%emt 0:00:11]} Ke7 {[%emt 0:00:42]} 61. Kxh5 {[%emt 0:00:07]} Kxe6 {[%emt 0:00:23]} 62. Kg6 {[%emt 0:00:13]} Kd5 {[%emt 0:00:23]} 63. h5 {[%emt 0:00:06]} Kc4 {[%emt 1:05:11]} 64. h6 {[%emt 0:00:06]} Kc3 {[%emt 0:00:00]} 65. h7 {[%emt 0:00:07]} Kb2 {[%emt 0:01:00]} 66. h8=Q+ {[%emt 0:00:05]} Kxa2 {[%emt 0:00:00]} 67. Qc3 {[%emt 0:00:03]} Kb1 {[%emt 0:00:00]} 68. Qxa3 {[%emt 0:00:02]} Kc2 {[%emt 0:00:00]} 69. Kf5 {[%emt 0:00:02]} Kd2 {[%emt 0:00:00]} 70. Ke4 {[%emt 0:00:02]} Ke2 {[%emt 0:00:00]} 71. Qb2+ {[%emt 0:00:02]} Kf1 {[%emt 0:00:00]} 72. Kf3 {[%emt 0:00:05]} Kg1 {[%emt 0:00:00]} 73. Qg2# {[%emt 0:00:03]} 1-0

[Event "FIDE WCCC Open-08 2024"]
[Site "Montesilvano"]
[Date "2024.11.18"]
[Round "2.47"]
[White "Contreras Salcedo, Samuel Esteban"]
[Black "Hakobyan, Sos"]
[Result "1/2-1/2"]
[ECO "B50"]
[WhiteElo "1508"]
[BlackElo "1806"]
[PlyCount "107"]
[EventDate "2024.11.18"]
[EventType "swiss"]
[EventCountry "ITA"]
[TimeControl "5400+30"]

1. e4 {[%emt 0:00:04]} c5 {[%emt 0:00:07]} 2. Nf3 {[%emt 0:00:10]} d6 {[%emt 0:00:08]} 3. Nc3 {[%emt 0:00:13]} Nf6 {[%emt 0:00:11]} 4. d3 {[%emt 0:00:09]} e6 {[%emt 0:00:20]} 5. Be3 {[%emt 0:02:23]} Be7 {[%emt 0:00:23]} 6. Be2 {[%emt 0:01:10]} O-O {[%emt 0:01:05]} 7. O-O {[%emt 0:00:56]} Nbd7 {[%emt 0:02:11]} 8. d4 {[%emt 0:02:42]} b6 {[%emt 0:01:16]} 9. e5 {[%emt 0:00:35]} dxe5 {[%emt 0:03:05]} 10. dxe5 {[%emt 0:00:14]} Ng4 {[%emt 0:01:38]} 11. h3 {[%emt 0:00:13]} Ngxe5 {[%emt 0:00:46]} 12. Nxe5 {[%emt 0:00:56]} Nxe5 {[%emt 0:00:24]} 13. Bf3 {[%emt 0:00:42]} Nxf3+ {[%emt 0:01:08]} 14. Qxf3 {[%emt 0:00:10]} Bd7 {[%emt 0:01:19]} 15. Qg3 {[%emt 0:00:23]} Bh4 {[%emt 0:02:43]} 16. Qf3 {[%emt 0:00:23]} Rc8 {[%emt 0:02:10]} 17. Rad1 {[%emt 0:05:43]} Qc7 {[%emt 0:04:37]} 18. Bf4 {[%emt 0:02:45]} Qc6 {[%emt 0:03:20]} 19. Qg4 {[%emt 0:04:36]} Be7 {[%emt 0:01:23]} 20. Bh6 {[%emt 0:01:21]} Bf6 {[%emt 0:01:18]} 21. Ne4 {[%emt 0:00:42]} Be5 {[%emt 0:03:37]} 22. c3 {[%emt 0:09:00]} f5 {[%emt 0:03:29]} 23. Qg5 {[%emt 0:01:33]} fxe4 {[%emt 0:01:13]} 24. Qxe5 {[%emt 0:02:57]} gxh6 {[%emt 0:01:14]} 25. Rd6 {[%emt 0:00:33]} Rf5 {[%emt 0:02:16]} 26. Qg3+ {[%emt 0:00:58]} Rg5 {[%emt 0:01:06]} 27. Rxc6 {[%emt 0:01:59]} Bxc6 {[%emt 0:01:34]} 28. Qd6 {[%emt 0:02:28]} Rg6 {[%emt 0:01:30]} 29. Rd1 {[%emt 0:01:25]} e3 {[%emt 0:00:52]} 30. g3 {[%emt 0:02:43]} exf2+ {[%emt 0:00:30]} 31. Kxf2 {[%emt 0:00:25]} Rf8+ {[%emt 0:00:32]} 32. Ke3 {[%emt 0:00:29]} Bd5 {[%emt 0:03:48]} 33. c4 {[%emt 0:04:23]} Bxc4 {[%emt 0:01:45]} 34. Qe7 {[%emt 0:00:36]} Bd5 {[%emt 0:02:54]} 35. g4 {[%emt 0:01:14]} Rf3+ {[%emt 0:02:05]} 36. Kd2 {[%emt 0:03:33]} Rxh3 {[%emt 0:02:16]} 37. Rf1 {[%emt 0:00:24]} Rf3 {[%emt 0:04:32]} 38. Qd8+ {[%emt 0:00:37]} Kg7 {[%emt 0:00:36]} 39. Qe7+ {[%emt 0:02:48]} Kg8 {[%emt 0:00:41]} 40. Qd8+ {[%emt 0:02:02]} Kg7 {[%emt 0:00:57]} 41. Qc7+ {[%emt 0:01:04]} Kg8 {[%emt 0:00:19]} 42. Qb8+ {[%emt 0:00:21]} Kg7 {[%emt 0:00:36]} 43. Qxa7+ {[%emt 0:00:12]} Kg8 {[%emt 0:00:13]} 44. Rxf3 {[%emt 0:02:15]} Bxf3 {[%emt 0:00:28]} 45. Qxb6 {[%emt 0:00:16]} Bxg4 {[%emt 0:00:19]} 46. Qxc5 {[%emt 0:00:14]} Rg5 {[%emt 0:00:44]} 47. Qe7 {[%emt 0:01:02]} Rd5+ {[%emt 0:00:46]} 48. Kc3 {[%emt 0:00:25]} h5 {[%emt 0:00:30]} 49. Qe8+ {[%emt 0:00:19]} Kg7 {[%emt 0:00:18]} 50. Qe7+ {[%emt 0:00:14]} Kg8 {[%emt 0:00:16]} 51. Qe8+ {[%emt 0:00:12]} Kg7 {[%emt 0:00:08]} 52. Qe7+ {[%emt 0:43:19]} Kg8 {[%emt 0:00:35]} 53. Qe8+ {[%emt 0:00:00]} Kg7 {[%emt 0:00:10]} 54. Qe7+ {[%emt 0:01:00]} 1/2-1/2

[Event "FIDE WCCC Open-08 2024"]
[Site "Montesilvano"]
[Date "2024.11.18"]
[Round "2.57"]
[White "Papadopoulos, Antonios P"]
[Black "Lee, David J"]
[Result "0-1"]
[ECO "C47"]
[WhiteElo "1455"]
[BlackElo "1446"]
[PlyCount "70"]
[EventDate "2024.11.18"]
[EventType "swiss"]
[EventCountry "ITA"]
[TimeControl "5400+30"]

1. e4 {[%emt 0:00:03]} e5 {[%emt 0:01:18]} 2. Nf3 {[%emt 0:00:20]} Nc6 {[%emt 0:00:08]} 3. d4 {[%emt 0:00:19]} exd4 {[%emt 0:00:08]} 4. Nxd4 {[%emt 0:00:19]} Nf6 {[%emt 0:00:06]} 5. Nc3 {[%emt 0:00:36]} Bb4 {[%emt 0:00:07]} 6. Bc4 {[%emt 0:00:34]} Nxe4 {[%emt 0:00:43]} 7. Qe2 {[%emt 0:00:37]} Qe7 {[%emt 0:00:29]} 8. Nf5 {[%emt 0:00:51]} Qe5 {[%emt 0:01:52]} 9. O-O {[%emt 0:01:02]} Bxc3 {[%emt 0:00:58]} 10. bxc3 {[%emt 0:01:33]} Qxf5 {[%emt 0:00:14]} 11. f3 {[%emt 0:00:23]} O-O {[%emt 0:01:13]} 12. fxe4 {[%emt 0:00:13]} Qe5 {[%emt 0:01:58]} 13. Bf4 {[%emt 0:01:16]} Qxc3 {[%emt 1:27:46]} 14. Bxc7 {[%emt 0:01:37]} Nd4 {[%emt 0:00:00]} 15. Qd3 {[%emt 0:00:38]} Qxd3 {[%emt 0:00:00]} 16. cxd3 {[%emt 0:00:19]} Ne6 {[%emt 0:00:00]} 17. Bd6 {[%emt 1:28:20]} Rd8 {[%emt 0:00:00]} 18. Bxe6 {[%emt 0:00:00]} dxe6 {[%emt 0:00:00]} 19. e5 {[%emt 0:00:00]} b6 {[%emt 0:00:00]} 20. Rac1 {[%emt 0:00:00]} Ba6 {[%emt 0:00:00]} 21. Rc7 {[%emt 0:00:00]} Rdc8 {[%emt 0:00:00]} 22. Re7 {[%emt 0:00:00]} Re8 {[%emt 0:00:00]} 23. Rc7 {[%emt 0:00:00]} Bxd3 {[%emt 0:00:00]} 24. Rfxf7 {[%emt 0:00:00]} Bg6 {[%emt 0:00:00]} 25. Rxg7+ {[%emt 0:00:00]} Kh8 {[%emt 0:00:00]} 26. h4 {[%emt 0:00:00]} Rg8 {[%emt 0:00:00]} 27. Rge7 {[%emt 0:00:00]} Be4 {[%emt 0:00:00]} 28. Rxa7 {[%emt 0:00:00]} Rxg2+ {[%emt 0:00:00]} 29. Kf1 {[%emt 0:00:00]} Rf8+ {[%emt 0:00:00]} 30. Rf7 {[%emt 0:00:00]} Rfg8 {[%emt 0:00:00]} 31. Be7 {[%emt 0:00:00]} Bd3+ {[%emt 0:00:00]} 32. Ke1 {[%emt 0:07:30]} Re2+ {[%emt 0:09:30]} 33. Kf1 {[%emt 0:00:00]} Rb2+ {[%emt 0:00:00]} 34. Ke1 {[%emt 0:00:00]} Rg1+ {[%emt 0:00:00]} 35. Rf1 {[%emt 0:00:00]} Rxf1# {[%emt 0:00:00]} 0-1

[Event "FIDE WCCC Open-08 2024"]
[Site "Montesilvano"]
[Date "2024.11.18"]
[Round "4.1"]
[White "Demchenko, Timofei"]
[Black "Elemes, Nurmukhamed"]
[Result "1-0"]
[ECO "B52"]
[WhiteElo "1969"]
[BlackElo "1735"]
[Annotator "RC"]
[PlyCount "75"]
[EventDate "2024.11.18"]
[EventType "swiss"]
[EventCountry "ITA"]
[SourceTitle "playchess.com"]
[Source "ChessBase"]
[SourceQuality "1"]
[TimeControl "5400+30"]

1. e4 {[%emt 0:00:01]} c5 {[%emt 0:00:05]} 2. Nf3 {[%emt 0:00:04]} d6 {[%emt 0:00:10]} 3. Bb5+ {[%emt 0:00:04]} Bd7 {[%emt 0:00:38]} 4. Bxd7+ {[%emt 0:00:06]} Qxd7 {[%emt 0:00:07]} 5. c4 {[%emt 0:00:04]} Nc6 {[%emt 0:01:05]} 6. Nc3 {[%emt 0:00:24]} g6 {[%emt 0:01:51]} 7. d4 {[%emt 0:00:20]} cxd4 {[%emt 0:00:06]} 8. Nxd4 {[%emt 0:00:05]} Bg7 {[%emt 0:01:33]} 9. Nde2 {[%emt 0:01:44]} Rc8 {[%emt 0:03:55]} 10. b3 {[%emt 0:01:55]} Nf6 {[%emt 0:03:26]} 11. f3 {[%emt 0:03:47]} O-O {[%emt 0:04:04]} 12. Bb2 {[%emt 0:02:47]} Ne8 {[%emt 0:05:30]} 13. Qd2 {[%emt 0:03:09]} f5 {[%emt 0:05:51]} 14. O-O-O {[%emt 0:03:49]} Nf6 {[%emt 0:06:18]} 15. Ng3 {[%emt 1:19:41]} fxe4 {[%emt 0:03:21]} 16. Ngxe4 {[%emt 0:00:00]} Nxe4 {[%emt 0:01:40]} 17. Nxe4 {[%emt 0:00:00]} Ne5 {[%emt 0:02:30]} 18. Bxe5 {[%emt 0:00:00]} Bxe5 {[%emt 0:02:45]} 19. Qd5+ {[%emt 0:00:00]} Rf7 {[%emt 0:04:25]} 20. Qxe5 {[%emt 0:00:00]} Rf5 {[%emt 0:00:52]} 21. Qd4 {[%emt 0:00:00]} b5 {[%emt 0:03:46]} 22. Nd2 {[%emt 0:00:00]} Qb7 {[%emt 0:07:06]} 23. Kb1 {[%emt 0:00:00]} bxc4 {[%emt 0:04:41]} 24. Nxc4 {[%emt 0:00:00]} a5 {[%emt 0:02:15]} 25. Ne3 {[%emt 0:00:00]} Rb5 {[%emt 0:01:44]} 26. Rc1 {[%emt 0:00:00]} Rb8 {[%emt 0:02:56]} 27. Rc3 {[%emt 0:00:00]} Ra8 {[%emt 0:02:29]} 28. Ka1 {[%emt 0:00:00]} a4 {[%emt 0:06:44]} 29. bxa4 {[%emt 0:00:00]} Rba5 {[%emt 0:00:27]} 30. Rb1 {[%emt 0:00:00]} Qd7 {[%emt 0:00:51]} 31. Rcb3 {[%emt 0:00:00]} e5 {[%emt 0:04:14]} 32. Rb8+ {[%emt 0:00:00]} Rxb8 {[%emt 0:01:08]} 33. Rxb8+ {[%emt 0:00:00]} Kg7 {[%emt 0:00:19]} 34. Qg4 {[%emt 0:00:00]} Qf7 {[%emt 0:05:25]} 35. Qb4 {[%emt 0:00:00]} Ra7 {[%emt 0:01:08]} 36. Qxd6 {[%emt 0:00:00]} Re7 {[%emt 0:03:26]} 37. Nd5 {[%emt 0:00:00]} Re6 {[%emt 0:01:08]} 38. Qc7 {[%emt 0:00:00]} 1-0

[Event "FIDE WCCC Open-08 2024"]
[Site "Montesilvano"]
[Date "2024.11.18"]
[Round "4.2"]
[White "Li, Aiden Linyuan"]
[Black "Sahin, Bora"]
[Result "1-0"]
[ECO "A36"]
[WhiteElo "1877"]
[BlackElo "1703"]
[Annotator "NA RC"]
[PlyCount "119"]
[EventDate "2024.11.18"]
[EventType "swiss"]
[EventCountry "ITA"]
[SourceTitle "playchess.com"]
[Source "ChessBase"]
[SourceQuality "1"]
[TimeControl "5400+30"]

1. e4 {[%emt 0:00:02]} c5 {[%emt 0:00:07]} 2. c4 {[%emt 0:00:03]} Nc6 {[%emt 0:00:27]} 3. Nc3 {[%emt 0:00:07]} d6 {[%emt 0:00:35]} 4. g3 {[%emt 0:00:10]} g6 {[%emt 0:00:38]} 5. Bg2 {[%emt 0:00:07]} Bg7 {[%emt 0:00:14]} 6. Nge2 {[%emt 0:00:08]} Bg4 {[%emt 0:02:07]} 7. h3 {[%emt 0:01:06]} Bd7 {[%emt 0:01:08]} 8. O-O {[%emt 0:00:14]} Nd4 {[%emt 0:05:08]} 9. d3 {[%emt 0:01:29]} Qc8 {[%emt 0:00:42]} 10. Kh2 {[%emt 0:00:20]} h5 {[%emt 0:01:44]} 11. Nxd4 {[%emt 0:04:33]} Bxd4 {[%emt 0:05:36]} 12. Be3 {[%emt 0:01:35]} h4 {[%emt 0:00:54]} 13. g4 {[%emt 0:00:14]} Nf6 {[%emt 0:02:17]} 14. Bxd4 {[%emt 0:04:32]} cxd4 {[%emt 0:00:13]} 15. Nd5 {[%emt 0:00:07]} g5 {[%emt 0:11:33]} 16. Nxf6+ {[%emt 0:02:36]} exf6 {[%emt 0:00:04]} 17. f4 {[%emt 0:01:27]} Qc5 {[%emt 0:01:05]} 18. Qd2 {[%emt 0:03:00]} gxf4 {[%emt 0:01:49]} 19. Rxf4 {[%emt 0:01:32]} Ke7 {[%emt 0:02:24]} 20. Raf1 {[%emt 0:00:23]} Qe5 {[%emt 0:04:21]} 21. Kh1 {[%emt 0:00:19]} Qg5 {[%emt 0:06:21]} 22. Qf2 {[%emt 0:00:12]} Rh6 {[%emt 0:07:34]} 23. Qxd4 {[%emt 0:00:46]} Qe5 {[%emt 0:01:13]} 24. Qe3 {[%emt 0:01:13]} Rg6 {[%emt 0:03:39]} 25. d4 {[%emt 0:01:03]} Qe6 {[%emt 0:00:39]} 26. e5 {[%emt 0:02:28]} dxe5 {[%emt 0:06:05]} 27. dxe5 {[%emt 0:00:36]} fxe5 {[%emt 0:00:43]} 28. Qc5+ {[%emt 0:00:19]} Ke8 {[%emt 0:01:22]} 29. Rxf7 {[%emt 0:00:55]} Qxf7 {[%emt 0:01:27]} 30. Rxf7 {[%emt 0:00:23]} Kxf7 {[%emt 0:00:05]} 31. Qd5+ {[%emt 0:00:45]} Ke7 {[%emt 0:00:55]} 32. Qxe5+ {[%emt 0:00:10]} Re6 {[%emt 0:00:27]} 33. Qg5+ {[%emt 0:00:13]} Kd6 {[%emt 0:00:39]} 34. Bxb7 {[%emt 0:00:56]} Rae8 {[%emt 0:01:09]} 35. Qf4+ {[%emt 0:00:57]} Kc5 {[%emt 0:01:51]} 36. Qc7+ {[%emt 0:00:10]} Bc6+ {[%emt 0:00:38]} 37. Bxc6 {[%emt 0:00:39]} Rxc6 {[%emt 0:00:08]} 38. b4+ {[%emt 0:00:03]} Kxb4 {[%emt 0:00:36]} 39. Qxc6 {[%emt 0:00:07]} Re1+ {[%emt 0:00:43]} 40. Kg2 {[%emt 0:00:47]} Re2+ {[%emt 0:00:08]} 41. Kf3 {[%emt 0:00:16]} Rxa2 {[%emt 0:00:21]} 42. g5 {[%emt 0:00:07]} a5 {[%emt 0:00:51]} 43. Qb5+ {[%emt 0:00:13]} Kc3 {[%emt 0:00:54]} 44. g6 {[%emt 0:00:25]} Ra3 {[%emt 0:01:57]} 45. Kg4 {[%emt 0:00:33]} Ra2 {[%emt 0:01:50]} 46. Kxh4 {[%emt 0:00:29]} Rg2 {[%emt 0:01:59]} 47. Qxa5+ {[%emt 0:00:11]} Kxc4 {[%emt 0:00:09]} 48. Qg5 {[%emt 0:00:21]} Rxg5 {[%emt 0:00:17]} 49. Kxg5 {[%emt 0:00:06]} Kd5 {[%emt 0:00:06]} 50. g7 {[%emt 0:00:06]} Kd4 {[%emt 0:00:15]} 51. g8=Q {[%emt 0:00:06]} Ke5 {[%emt 0:00:17]} 52. Qe8+ {[%emt 0:00:10]} Kd6 {[%emt 0:00:42]} 53. Kf5 {[%emt 0:00:05]} Kd5 {[%emt 0:00:38]} 54. Qe4+ {[%emt 0:00:39]} Kd6 {[%emt 0:00:20]} 55. Qc4 {[%emt 0:00:07]} Ke7 {[%emt 0:00:27]} 56. Ke5 {[%emt 0:00:25]} Kd7 {[%emt 0:00:12]} 57. Qc5 {[%emt 0:00:09]} Ke8 {[%emt 0:00:30]} 58. Ke6 {[%emt 0:00:08]} Kd8 {[%emt 0:00:10]} 59. h4 {[%emt 0:00:07]} Ke8 {[%emt 0:00:52]} 60. Qe7# {[%emt 0:00:37]} 1-0